bitfinex/quotes_SOLUSD_20250222
["timestamp","ask_amount","ask_price","bid_price","bid_amount"]
[1740250474505,92.50071315,173.01,172.98,5.781]
[1740250475098,92.50071315,173.01,172.96,45.95481315]
[1740250475406,92.50071315,173.01,172.97,5.7813]
[1740250476198,81.0,173.01,172.97,5.7813]
[1740250476985,81.0,173.01,172.97,17.28201315]
[1740250477403,81.0,173.01,172.97,20.2346]
[1740250477610,81.0,173.01,172.97,31.73531315]
[1740250478705,81.0,173.01,172.98,11.50071315]
[1740250479087,81.0,173.01,172.97,31.73531315]
[1740250479603,81.0,173.01,172.98,11.50071315]
[1740250480385,81.0,173.01,172.97,31.73531315]
[1740250480789,81.0,173.01,172.98,11.50071315]
[1740250481487,81.0,173.01,172.99,5.7806]
[1740250482411,81.0,173.01,173.0,11.50071315]
[1740250482587,81.0,173.05,173.0,11.50071315]
[1740250482791,81.0,173.07,173.03,11.50071315]
[1740250483009,81.0,173.07,173.04,11.50071315]
[1740250483196,81.0,173.07,173.03,11.50071315]
[1740250483728,81.0,173.07,173.04,5.779]
[1740250484923,92.50071315,173.07,173.02,25.94981315]
[1740250485141,92.50071315,173.07,173.02,11.50071315]
[1740250485323,92.50071315,173.07,173.01,17.28071315]
[1740250486331,81.0,173.07,173.0,31.15036201]
[1740250486503,81.0,173.07,173.02,11.50071315]
[1740250486701,81.0,173.07,173.03,11.50071315]
[1740250486899,81.0,173.07,173.04,5.779]
[1740250487708,81.0,173.07,173.04,17.27971315]
[1740250488005,81.0,173.07,173.04,5.779]
[1740250489415,92.50071315,173.07,173.02,25.94971315]
[1740250489999,81.0,173.07,173.02,25.94971315]
[1740250490526,81.0,173.07,173.03,11.50071315]
[1740250490700,92.50071315,173.07,173.02,14.449]
[1740250490901,11.50071315,173.06,173.01,5.78]
[1740250491198,11.50071315,173.06,173.01,17.28071315]
[1740250492023,11.50071315,173.06,173.01,5.78]
[1740250492224,11.50071315,173.06,173.01,17.28071315]
[1740250492438,92.50071315,173.06,173.01,17.28071315]
[1740250493024,92.50071315,173.06,173.01,5.78]
[1740250493610,92.50071315,173.06,173.01,17.28071315]
[1740250494741,81.0,173.06,173.01,17.28071315]
[1740250495317,92.50071315,173.06,173.01,17.28071315]
[1740250495926,11.50071315,173.04,173.01,5.78]
[1740250496292,11.50071315,173.02,172.98,5.781]
[1740250496410,92.50071315,173.02,172.98,5.781]
[1740250497021,11.50071315,173.01,172.97,5.7813]
[1740250497229,11.50071315,173.0,172.97,5.7813]
[1740250498109,11.50071315,172.98,172.93,11.50071315]
[1740250498309,92.50071315,172.98,172.93,11.50071315]
[1740250499040,92.50071315,172.98,172.93,5.7826]
[1740250499348,92.50071315,172.98,172.93,17.28331315]
[1740250499513,81.0,172.98,172.94,11.50071315]
[1740250500046,81.0,172.98,172.91,11.50071315]
[1740250500245,81.0,172.98,172.93,11.50071315]
[1740250500549,92.50071315,172.98,172.92,11.50071315]
[1740250500868,81.0,172.98,172.95,11.50071315]
[1740250501081,81.0,172.98,172.95,5.782]
[1740250501435,13.04521315,172.99,172.95,5.782]
[1740250501661,8.1241,173.05,172.98,11.50071315]
[1740250501871,11.50071315,173.03,172.98,11.50071315]
[1740250502251,81.0,173.02,172.99,11.50071315]
[1740250502442,81.0,173.02,173.01,11.50071315]
[1740250502756,81.0,173.02,173.01,18.06092539]
[1740250503137,81.063,173.07,173.02,20.2287]
[1740250503335,81.063,173.07,173.05,18.06092539]
[1740250503798,18.06092539,173.06,173.02,20.2287]
[1740250503976,18.06092539,173.06,173.02,5.7796]
[1740250504534,99.12392539,173.07,173.02,5.7796]
[1740250505179,99.12392539,173.07,173.02,23.84052539]
[1740250505538,81.063,173.07,173.02,23.84052539]
[1740250505734,81.063,173.07,173.05,18.06092539]
[1740250505969,0.063,173.07,173.06,37.71057425]
[1740250506362,81.0,173.12,173.06,37.71057425]
[1740250506538,81.0,173.12,173.1,18.06092539]
[1740250506748,81.0,173.12,173.11,18.06092539]
[1740250506953,81.0,173.12,173.1,18.06092539]
[1740250507341,81.0,173.12,173.11,18.06092539]
[1740250509350,81.0,173.12,173.11,23.83752539]
[1740250510161,81.0,173.12,173.1,18.06092539]
[1740250510370,81.0,173.12,173.09,23.83792539]
[1740250512181,81.063,173.12,173.09,23.83792539]
[1740250512366,81.063,173.12,173.1,18.06092539]
[1740250513699,81.063,173.12,173.09,23.83792539]
[1740250513859,81.063,173.12,173.09,5.777]
[1740250514254,81.063,173.12,173.07,23.83892539]
[1740250514486,81.063,173.12,173.08,18.06092539]
[1740250514995,81.063,173.12,173.09,18.06092539]
[1740250515204,81.063,173.12,173.07,5.778]
[1740250515205,81.063,173.12,173.1,18.06092539]
[1740250515385,81.063,173.12,173.09,18.06092539]
[1740250516171,81.063,173.12,173.11,23.83752539]
[1740250516366,81.063,173.12,173.11,5.7766]
[1740250516878,81.063,173.12,173.11,23.83752539]
[1740250517092,0.063,173.12,173.11,23.83752539]
[1740250517471,18.12392539,173.12,173.08,5.7776]
[1740250517799,0.063,173.12,173.08,5.7776]
[1740250518200,18.12392539,173.12,173.08,5.7776]
[1740250518400,18.12392539,173.12,173.07,5.778]
[1740250518585,18.06092539,173.09,173.06,5.7783]
[1740250518780,18.06092539,173.07,173.0,5.7803]
[1740250518996,18.06092539,173.05,173.0,5.7803]
[1740250519201,18.06092539,173.05,173.03,20.0]
[1740250519973,18.06092539,173.04,172.99,5.7806]
[1740250520177,18.06092539,173.03,172.99,5.7806]
[1740250520389,18.06092539,173.02,172.99,5.7806]
[1740250520593,99.06092539,173.05,172.99,23.84152539]
[1740250520977,99.06092539,173.05,173.0,18.06092539]
[1740250521606,81.0,173.05,173.0,18.06092539]
[1740250522194,81.0,173.05,173.01,5.78]
[1740250522472,81.0,173.05,173.01,23.84092539]
[1740250523900,18.06092539,173.03,172.99,5.7806]
[1740250524100,18.06092539,173.02,172.96,18.06092539]
[1740250524307,99.06092539,173.01,172.97,5.7813]
[1740250524824,81.0,173.01,172.97,23.84222539]
[1740250525379,81.0,173.01,172.98,18.06092539]
[1740250525597,81.0,173.01,172.99,18.06092539]
[1740250525997,81.0,173.01,173.0,23.84122539]
[1740250526203,81.0,173.06,173.0,23.84122539]
[1740250526396,81.0,173.05,173.02,18.06092539]
[1740250527284,81.0,173.05,173.03,18.06092539]
[1740250528785,81.0,173.08,173.04,23.83992539]
[1740250529029,82.651,173.11,173.07,18.06092539]
[1740250529429,81.0,173.11,173.08,18.06092539]
[1740250529612,81.0,173.11,173.07,18.06092539]
[1740250529805,81.0,173.11,173.06,18.06092539]
[1740250530201,18.06092539,173.1,173.05,18.06092539]
[1740250530519,18.06092539,173.1,173.04,23.83992539]
[1740250530708,81.0,173.09,173.05,18.06092539]
[1740250530926,81.0,173.09,173.06,18.06092539]
[1740250531409,81.0,173.09,173.05,18.06092539]
[1740250532035,18.06092539,173.07,173.01,14.4499]
[1740250532209,0.063,173.12,172.99,81.9]
[1740250532210,18.06092539,173.05,173.02,5.7796]
[1740250532914,18.06092539,173.05,173.0,5.7803]
[1740250533319,18.06092539,173.04,173.0,5.7803]
[1740250533514,18.06092539,173.05,173.0,5.7803]
[1740250533718,19.63022539,173.06,173.0,23.84122539]
[1740250534098,18.06092539,173.05,173.0,5.7803]
[1740250535525,19.63022539,173.06,173.0,23.84122539]
[1740250536529,19.63022539,173.06,173.01,18.06092539]
[1740250536731,19.63022539,173.06,173.0,23.84122539]
[1740250537029,81.0,173.05,173.0,23.84122539]
[1740250537334,81.0,173.05,173.0,23.87122539]
[1740250537697,81.0,173.05,173.01,18.06092539]
[1740250538002,81.0,173.05,173.02,5.7796]
[1740250544129,81.0,173.05,173.0,5.8103]
[1740250544130,18.06092539,173.04,173.0,5.8103]
[1740250544329,18.06092539,173.02,173.0,0.03]
[1740250544703,18.06092539,173.03,173.0,0.03]
[1740250545926,81.0,173.04,173.0,0.03]
[1740250546131,18.06092539,173.03,173.0,0.03]
[1740250546909,99.06092539,173.04,173.0,0.03]
[1740250548869,81.0,173.04,173.0,18.09092539]
[1740250549127,81.0,173.04,173.0,0.03]
[1740250549333,81.0,173.04,173.02,18.06092539]
[1740250550412,81.0,173.04,173.03,5.7793]
[1740250550909,81.0,173.04,173.0,5.8102]
[1740250551111,18.06092539,173.03,173.0,0.03]
[1740250551314,99.06092539,173.04,173.0,5.8103]
[1740250552237,99.06092539,173.04,173.0,0.03]
[1740250553556,81.0,173.04,173.0,0.03]
[1740250555069,81.0,173.03,173.01,18.06092539]
[1740250555847,81.0,173.03,173.0,18.09092539]
[1740250556749,81.0,173.03,173.01,5.78]
[1740250558345,81.0,173.06,173.02,18.06092539]
[1740250559266,81.0,173.06,173.03,18.06092539]
[1740250559467,81.0,173.06,173.04,5.779]
[1740250559840,0.063,173.07,173.05,18.06092539]
[1740250561243,0.063,173.07,173.04,5.779]
[1740250561442,0.063,173.07,173.03,5.7793]
[1740250561766,18.12392539,173.07,173.03,5.7793]
[1740250562869,0.063,173.07,173.03,23.84022539]
[1740250563166,0.063,173.07,173.04,18.06092539]
[1740250563663,0.063,173.07,173.06,5.7783]
[1740250564764,0.063,173.07,173.06,23.83922539]
[1740250565336,0.063,173.07,173.06,5.7783]
[1740250565670,0.063,173.07,173.05,5.7786]
[1740250567569,0.063,173.07,173.06,18.06092539]
[1740250569968,0.063,173.07,173.06,42.48887425]
[1740250571866,0.063,173.07,173.06,5.7783]
[1740250573142,0.063,173.07,173.04,18.64964886]
[1740250573345,0.063,173.07,173.05,5.7786]
[1740250573562,18.12392539,173.07,173.04,5.779]
[1740250574267,18.12392539,173.07,173.01,18.06092539]
[1740250574564,99.12392539,173.07,173.05,20.0]
[1740250575376,99.12392539,173.07,173.04,20.0]
[1740250575879,99.12392539,173.07,173.05,0.03]
[1740250576394,81.063,173.07,173.05,0.03]
[1740250587590,92.61926874,173.07,173.05,0.03]
[1740250591906,81.063,173.07,173.05,0.03]
[1740250618821,81.063,173.07,173.06,38.64964886]
[1740250619017,81.063,173.07,173.06,50.2059176]
[1740250619824,92.61926874,173.07,173.05,0.03]
[1740250620319,81.063,173.07,173.05,0.03]
[1740250621019,81.063,173.07,173.05,5.8086]
[1740250621399,92.61926874,173.07,173.05,5.8086]
[1740250621722,81.063,173.07,173.05,5.8086]
[1740250622326,81.063,173.07,173.05,0.03]
[1740250625933,81.063,173.07,173.05,5.8086]
[1740250626231,0.063,173.07,173.05,5.8086]
[1740250638337,0.063,173.07,173.05,0.03]
[1740250638828,0.063,173.07,173.05,20.03]
[1740250639632,0.063,173.07,173.05,0.03]
[1740250640248,0.063,173.07,173.05,20.03]
[1740250640637,0.063,173.07,173.06,20.0]
[1740250641063,0.063,173.07,173.06,38.64964886]
[1740250641267,0.063,173.07,173.06,50.2059176]
[1740250642127,0.063,173.07,173.06,55.9842176]
[1740250644166,0.063,173.07,173.06,44.42794886]
[1740250644472,0.063,173.07,173.06,25.7783]
[1740250646043,0.063,173.07,173.06,55.9842176]
[1740250647280,0.063,173.07,173.06,44.42794886]
[1740250647649,0.063,173.07,173.06,55.9842176]
[1740250648584,0.0001,173.07,173.06,58.86636292]
[1740250650371,0.063,173.11,173.1,38.64964886]
[1740250651675,0.063,173.11,173.1,44.42664886]
[1740250653876,81.0,173.16,173.1,44.42664886]
[1740250653877,81.0,173.18,173.17,20.0]
[1740250654072,11.55626874,173.21,173.18,20.0]
[1740250654073,92.55626874,173.21,173.18,20.0]
[1740250654373,81.0,173.21,173.18,38.64964886]
[1740250654763,81.0,173.21,173.18,50.2059176]
[1740250654956,81.0,173.21,173.19,11.55626874]
[1740250655157,81.0,173.21,173.2,35.9795176]
[1740250655657,0.063,173.22,173.21,18.64964886]
[1740250655853,0.063,173.22,173.21,11.55626874]
[1740250656766,0.063,173.22,173.2,17.32986874]
[1740250657080,0.063,173.21,173.2,17.32986874]
[1740250659279,0.063,173.22,173.2,17.32986874]
[1740250659465,0.063,173.22,173.21,11.55626874]
[1740250660885,0.063,173.22,173.21,5.7733]
[1740250661178,0.063,173.22,173.21,17.32956874]
[1740250664066,0.0001,173.22,173.21,36.9792176]
[1740250664703,0.0001,173.22,173.21,118.8792176]
[1740250665259,0.0001,173.22,173.21,119.8792176]
[1740250668289,0.0001,173.22,173.21,118.8792176]
[1740250668458,0.0001,173.22,173.21,119.8792176]
[1740250669882,0.0001,173.25,173.24,21.0]
[1740250670095,0.0001,173.25,173.24,32.55626874]
[1740250670391,0.0001,173.25,173.24,52.2059176]
[1740250670692,0.0001,173.25,173.24,134.1059176]
[1740250670989,0.0001,173.25,173.24,133.1059176]
[1740250671157,0.0001,173.25,173.24,132.1059176]
[1740250671358,0.0001,173.25,173.24,137.8782176]
[1740250675090,0.0001,173.25,173.24,140.80297487]
[1740250676589,0.0001,173.25,173.24,58.90297487]
[1740250690322,0.0001,173.25,173.24,47.34670613]
[1740250690797,0.0001,173.25,173.24,27.34670613]
[1740250691002,0.0001,173.25,173.24,18.64964886]
[1740250691182,0.0001,173.25,173.22,17.32886874]
[1740250691578,0.0001,173.25,173.24,20.0]
[1740250691795,0.0001,173.25,173.23,24.42214886]
[1740250692173,0.0001,173.25,173.22,11.55626874]
[1740250692496,1.5915,173.24,173.21,5.803]
[1740250693686,1.5915,173.24,173.21,17.35926874]
[1740250694782,1.5915,173.24,173.23,5.7726]
[1740250694977,0.0001,173.25,173.23,17.32886874]
[1740250695904,0.0001,173.25,173.22,5.7729]
[1740250696108,0.0001,173.25,173.22,24.42254886]
[1740250696495,11.55636874,173.25,173.22,5.7729]
[1740250696805,11.55636874,173.25,173.21,0.03]
[1740250696806,11.55626874,173.23,173.21,0.03]
[1740250697104,11.55626874,173.22,173.21,0.03]
[1740250698310,17.32926874,173.22,173.21,0.03]
[1740250699290,11.55626874,173.22,173.21,0.03]
[1740250701830,13.4803,173.24,173.21,0.03]
[1740250702125,11.55626874,173.22,173.21,0.03]
[1740250703110,7.7079,173.24,173.21,0.03]
[1740250703304,81.0,173.23,173.21,0.03]
[1740250704232,81.0,173.23,173.21,11.58626874]
[1740250704527,81.0,173.23,173.21,11.30869364]
[1740250704701,81.0,173.23,173.2,31.55626874]
[1740250705028,81.0,173.23,173.2,37.32966874]
[1740250705628,81.0,173.23,173.21,11.55626874]
[1740250706031,81.0,173.23,173.21,11.58626874]
[1740250706328,81.0,173.23,173.21,0.03]
[1740250706553,81.0,173.23,173.21,11.58626874]
[1740250706731,81.0,173.23,173.22,5.773]
[1740250708521,81.0,173.23,173.21,0.03]
[1740250710727,92.55626874,173.22,173.21,0.03]
[1740250711024,11.55626874,173.22,173.21,0.03]
[1740250719949,0.063,173.23,173.21,0.03]
[1740250720138,11.61926874,173.23,173.21,0.03]
[1740250720533,11.55626874,173.22,173.21,0.03]
[1740250720731,11.61926874,173.23,173.21,0.03]
[1740250722349,11.55626874,173.22,173.21,0.03]
[1740250723562,11.25164385,173.22,173.21,0.03]
[1740250723735,11.61926874,173.23,173.21,0.03]
[1740250724485,0.063,173.23,173.21,0.03]
[1740250731954,0.063,173.23,173.21,11.58626874]
[1740250733060,0.063,173.23,173.22,31.55626874]
[1740250733760,0.063,173.23,173.22,55.9789176]
[1740250737070,0.063,173.23,173.21,0.03]
[1740250737362,11.61926874,173.23,173.21,0.03]
[1740250739261,0.063,173.23,173.21,0.03]
[1740250741753,4.995,173.22,173.21,0.03]
[1740250743369,4.995,173.22,173.21,20.03]
[1740250746169,4.995,173.22,173.21,0.03]
[1740250746476,16.55126874,173.22,173.21,0.03]
[1740250747060,28.67226874,173.22,173.21,0.03]
[1740250757571,1.0,173.21,173.08,5.7776]
[1740250757755,11.55626874,173.14,173.09,11.55626874]
[1740250757954,11.55626874,173.15,173.09,11.55626874]
[1740250759130,11.55626874,173.15,173.1,5.777]
[1740250760282,16.55126874,173.15,173.1,5.777]
[1740250762979,81.0,173.14,173.1,5.777]
[1740250765282,81.0,173.14,173.1,5.807]
[1740250768574,92.55626874,173.14,173.1,5.807]
[1740250768793,92.55626874,173.13,173.1,5.807]
[1740250769677,92.55626874,173.13,173.1,0.03]
[1740250772381,81.0,173.13,173.1,0.03]
[1740250773082,4.995,173.11,173.1,0.03]
[1740250774583,4.995,173.11,173.1,11.58626874]
[1740250774766,81.0,173.16,173.13,20.0]
[1740250774972,81.0,173.16,173.14,11.55626874]
[1740250775183,81.0,173.16,173.15,11.55626874]
[1740250775375,81.0,173.2,173.15,11.55626874]
[1740250775567,81.0,173.2,173.19,11.55626874]
[1740250775762,1.698,173.22,173.19,11.55626874]
[1740250775763,0.063,173.22,173.19,11.55626874]
[1740250776072,0.063,173.22,173.2,11.55626874]
[1740250776960,0.063,173.22,173.19,17.33026874]
[1740250777162,0.063,173.22,173.19,5.774]
[1740250777888,0.063,173.21,173.19,5.774]
[1740250778494,0.063,173.21,173.19,17.33026874]
[1740250780684,0.063,173.21,173.18,11.55626874]
[1740250782190,0.063,173.21,173.17,35.9805176]
[1740250782895,11.61926874,173.21,173.17,5.7746]
[1740250783398,0.063,173.21,173.17,5.7746]
[1740250786296,81.063,173.21,173.17,11.55626874]
[1740250787999,81.063,173.21,173.18,11.55626874]
[1740250788886,81.063,173.21,173.19,5.774]
[1740250789095,81.063,173.21,173.14,21.59605193]
[1740250789096,11.55626874,173.2,173.15,5.7753]
[1740250789595,11.55626874,173.19,173.15,5.7753]
[1740250789897,11.55626874,173.16,173.13,5.776]
[1740250790679,11.55626874,173.16,173.12,5.7763]
[1740250790881,81.0,173.17,173.12,17.33256874]
[1740250793488,81.0,173.17,173.14,17.33186874]
[1740250793804,81.0,173.17,173.15,11.55626874]
[1740250794512,81.0,173.17,173.16,5.775]
[1740250798398,81.0,173.2,173.16,17.33126874]
[1740250798604,81.0,173.2,173.17,11.55626874]
[1740250799602,81.0,173.2,173.18,5.7743]
[1740250800009,81.0,173.2,173.16,5.775]
[1740250800010,11.55626874,173.19,173.16,5.775]
[1740250800207,11.55626874,173.18,173.13,18.64964886]
[1740250800511,81.0,173.19,173.11,0.03]
[1740250800512,11.55626874,173.16,173.11,0.03]
[1740250800700,81.0,173.15,173.11,0.03]
[1740250801014,92.55626874,173.15,173.11,5.8065]
[1740250802894,81.0,173.15,173.11,17.36276874]
[1740250803403,81.0,173.15,173.12,31.55626874]
[1740250804006,81.0,173.15,173.13,30.2059176]
[1740250804195,81.0,173.15,173.14,30.2059176]
[1740250804423,81.0,173.19,173.14,30.2059176]
[1740250804597,81.0,173.19,173.16,11.55626874]
[1740250805000,81.0,173.19,173.17,11.55626874]
[1740250805205,81.0,173.19,173.15,38.86324886]
[1740250805402,11.55626874,173.18,173.15,5.7753]
[1740250805610,92.55626874,173.19,173.15,5.7753]
[1740250806492,92.55626874,173.19,173.14,5.7756]
[1740250807612,81.0,173.19,173.14,17.33186874]
[1740250810302,81.0,173.18,173.14,17.33186874]
[1740250812914,81.0,173.18,173.14,5.7756]
[1740250813601,81.063,173.18,173.14,5.7756]
[1740250813794,81.063,173.18,173.14,17.33186874]
[1740250817760,81.063,173.18,173.16,17.33126874]
[1740250820149,81.063,173.18,173.16,5.775]
[1740250822131,81.063,173.18,173.15,5.7753]
[1740250822434,11.55626874,173.16,173.11,0.03]
[1740250822633,7.3634,173.18,173.11,5.8066]
[1740250822634,11.55626874,173.14,173.11,5.8066]
[1740250822827,11.55626874,173.14,173.11,0.03]
[1740250823029,11.55626874,173.13,173.11,0.03]
[1740250823932,11.55626874,173.12,173.11,0.03]
[1740250824517,19.68276874,173.12,173.11,0.03]
[1740250828359,19.68276874,173.12,173.07,5.808]
[1740250828546,11.55626874,173.11,173.07,5.808]
[1740250828752,8.1265,173.12,173.09,11.55626874]
[1740250828950,1.5261,173.12,173.09,11.55626874]
[1740250829343,1.5261,173.12,173.08,30.2059176]
[1740250830392,1.5261,173.12,173.09,11.55626874]
[1740250830581,11.55626874,173.14,173.1,5.777]
[1740250831579,8.2567,173.16,173.1,17.33326874]
[1740250831580,19.81296874,173.16,173.1,17.33326874]
[1740250831760,0.063,173.18,173.15,11.55626874]
[1740250832269,81.0,173.17,173.15,11.55626874]
[1740250832583,0.063,173.18,173.16,17.33126874]
[1740250832871,0.063,173.18,173.17,11.55626874]
[1740250833255,0.063,173.18,173.17,30.2059176]
[1740250834486,0.063,173.18,173.17,35.9805176]
[1740250836778,0.063,173.18,173.17,24.42424886]
[1740250836988,0.063,173.18,173.17,35.9805176]
[1740250845889,0.0001,173.18,173.17,36.9805176]
[1740250846103,0.0001,173.18,173.17,37.84636204]
[1740250847602,0.063,173.23,173.21,18.64964886]
[1740250847921,0.0001,173.23,173.22,30.2059176]
[1740250848209,0.0001,173.23,173.22,35.9789176]
[1740250848372,0.0001,173.23,173.22,36.9789176]
[1740250849213,0.0001,173.23,173.22,35.9789176]
[1740250849414,0.0001,173.23,173.22,36.9789176]
[1740250849736,0.0001,173.23,173.22,35.9789176]
[1740250850235,0.0001,173.23,173.22,117.8789176]
[1740250852406,0.0001,173.23,173.22,24.42264886]
[1740250852600,0.0001,173.23,173.2,17.32956874]
[1740250852842,0.0001,173.23,173.2,5.7733]
[1740250853139,11.55636874,173.23,173.21,20.0]
[1740250853448,11.55636874,173.23,173.18,5.774]
[1740250854229,11.55636874,173.23,173.18,24.42364886]
[1740250854415,11.55636874,173.23,173.19,18.64964886]
[1740250854616,18.02859496,173.23,173.19,18.64964886]
[1740250856522,18.02859496,173.23,173.19,24.42354886]
[1740250857145,0.0001,173.23,173.19,24.42354886]
[1740250862061,0.0001,173.23,173.19,42.45204382]
[1740250863426,0.0001,173.23,173.19,24.42354886]
[1740250867975,18.02859496,173.23,173.19,24.42354886]
[1740250868161,18.02849496,173.21,173.18,5.7742]
[1740250868455,18.02849496,173.21,173.17,5.8046]
[1740250869347,18.02849496,173.2,173.17,0.03]
[1740250869545,18.02849496,173.19,173.17,0.03]
[1740250869853,19.58889496,173.18,173.17,0.03]
[1740250870048,1.5604,173.18,173.17,0.03]
[1740250871057,99.02849496,173.22,173.17,0.03]
[1740250871353,100.58889496,173.22,173.17,5.8046]
[1740250871965,82.5604,173.22,173.17,23.83309496]
[1740250872173,82.5604,173.22,173.19,18.02849496]
[1740250872769,82.5604,173.22,173.2,18.02849496]
[1740250873461,82.5604,173.22,173.21,5.7733]
[1740250873661,81.0,173.22,173.21,5.7733]
[1740250874662,81.0,173.22,173.2,11.53412964]
[1740250875064,0.0001,173.23,173.2,11.53412964]
[1740250875872,0.0001,173.23,173.2,18.64964886]
[1740250876173,0.0001,173.23,173.21,5.7733]
[1740250886584,0.0001,173.23,173.22,30.1837785]
[1740250886764,0.0001,173.23,173.22,35.9567785]
[1740250887871,0.0001,173.23,173.22,37.8223878]
[1740250888071,0.0001,173.23,173.22,36.8223878]
[1740250888377,0.0001,173.23,173.22,119.72240012]
[1740250888579,0.0001,173.25,173.24,38.64964886]
[1740250888782,0.0001,173.25,173.24,60.3360785]
[1740250889290,0.0001,173.25,173.24,61.3360785]
[1740250889530,0.0001,173.25,173.24,108.33809288]
[1740250889675,0.0001,173.25,173.24,110.69044421]
[1740250890982,0.0001,173.28,173.27,118.8550785]
[1740250891971,1.6284,173.36,173.31,20.0]
[1740250892171,1.6284,173.36,173.33,18.64964886]
[1740250892388,1.6284,173.36,173.33,30.1837785]
[1740250893103,1.6284,173.36,173.35,18.64964886]
[1740250893575,0.063,173.36,173.35,18.64964886]
[1740250898794,0.063,173.36,173.35,24.41824886]
[1740250899698,0.063,173.36,173.35,35.9523785]
[1740250902597,0.063,173.36,173.35,18.64964886]
[1740250903078,0.063,173.36,173.33,8.58839901]
[1740250903285,0.063,173.36,173.33,5.7693]
[1740250903698,0.063,173.36,173.32,18.64964886]
[1740250903901,0.063,173.36,173.32,24.41924886]
[1740250904402,0.063,173.36,173.32,35.9533785]
[1740250905395,11.59712964,173.36,173.32,24.41924886]
[1740250905597,11.53412964,173.35,173.32,18.64964886]
[1740250906108,11.53412964,173.33,173.29,4.34]
[1740250906284,11.53412964,173.32,173.27,5.7713]
[1740250906595,1.607,173.33,173.28,18.64964886]
[1740250906596,11.53412964,173.31,173.28,18.64964886]
[1740250906898,11.53412964,173.29,173.24,5.7723]
[1740250907095,11.53412964,173.29,173.25,18.64964886]
[1740250907391,11.53412964,173.28,173.25,18.64964886]
[1740250908370,11.53412964,173.29,173.25,24.42154886]
[1740250908571,81.0,173.31,173.27,11.53412964]
[1740250908898,81.0,173.31,173.29,18.64964886]
[1740250909201,13.14112964,173.33,173.27,11.53412964]
[1740250909794,13.14112964,173.33,173.28,18.64964886]
[1740250910007,13.14112964,173.33,173.28,24.42064886]
[1740250910701,19.61472727,173.33,173.28,24.42064886]
[1740250910901,18.00772727,173.32,173.28,24.42064886]
[1740250911284,1.607,173.33,173.28,42.42837613]
[1740250911491,81.0,173.35,173.31,18.64964886]
[1740250911692,81.0,173.35,173.31,18.00772727]
[1740250912079,81.0,173.35,173.33,18.64964886]
[1740250912287,0.063,173.36,173.31,18.00772727]
[1740250912493,18.07072727,173.36,173.3,18.00772727]
[1740250912701,18.07072727,173.36,173.31,18.64964886]
[1740250912903,18.00772727,173.35,173.31,18.64964886]
[1740250913104,18.07072727,173.36,173.31,18.64964886]
[1740250913679,18.07072727,173.36,173.31,24.41934886]
[1740250914080,0.063,173.36,173.33,18.64964886]
[1740250914290,0.063,173.36,173.33,36.65737613]
[1740250915380,0.063,173.36,173.35,18.64964886]
[1740250915592,0.063,173.36,173.35,23.77632727]
[1740250915796,0.063,173.36,173.35,46.76597613]
[1740250917084,0.063,173.36,173.35,22.98964886]
[1740250921303,18.07072727,173.36,173.3,81.9]
[1740250921493,18.00772727,173.34,173.3,5.7703]
[1740250921691,18.00772727,173.34,173.31,18.64964886]
[1740250922099,18.00772727,173.32,173.27,0.03]
[1740250922298,18.00772727,173.31,173.27,0.03]
[1740250922588,18.00772727,173.3,173.27,5.8012]
[1740250922789,18.00772727,173.29,173.27,0.03]
[1740250923101,18.00772727,173.3,173.27,0.03]
[1740250923883,18.00772727,173.29,173.27,0.03]
[1740250924083,18.00772727,173.3,173.27,0.03]